Cogmind - Beta 17 @@@ ROGUE MODE // 2026.07.12 @ 21:20:51 Player: oj;irsth;'shr Result: Destroyed by S-10 Pest with Light Assault Rifle Performance ------------- Evolutions (0) 0 Regions Visited (2) 400 Robots Destroyed (11) 55 Value Destroyed (169) 169 Prototype IDs (1) 20 Alien Tech Used (0) 0 Bonus (5250) 5250 TOTAL SCORE: 5894 Bonus ------- Prayed to X0-1V1 5000 Major X0-1V1 Interference 250 Cogmind --------- Core Integrity 0/250 Matter 300/300 Energy 100/100 System Corruption 0% Temperature Cool (2) Movement Flying (40) Location -10/Mines Parts ------- > --- POWER (1) -------- (None) > --- PROPULSION (2) --- Flight Unit > --- UTILITY (2) ------ (None) > --- WEAPON (3) ------- (None) > --- INVENTORY (5) ---- Light Ion Engine Light Ion Engine Small Storage Unit Improved Terrain Scanner Light Assault Rifle Peak State ------------ > --- POWER ------------ (None) > --- PROPULSION ------- Flight Unit > --- UTILITY ---------- Seismic Detector X0-1V1's Piety Tracker > --- WEAPON ----------- EM Pulse Gun Assault Rifle > --- INVENTORY -------- Light Ion Engine Light Ion Engine Small Storage Unit Improved Terrain Scanner [Rating: 17] Favorites ----------- Power Light Ion Engine Engine Light Ion Engine Propulsion Flight Unit Flight Unit Flight Unit Utility Seismic Detector Device Seismic Detector Weapon EM Pulse Gun Energy Gun EM Pulse Gun Ballistic Gun Assault Rifle Slashing Weapon Mining Claw Build | -11 -10 -10 ------- Run | Yrd Mat Min Slots Evolved . | . . . Power . | . . . Propulsion . | . . . Utility . | . . . Weapon . | . . . Parts Attached 9 | 4 5 . Power 1 | 1 . . Engine 1 | 1 . . Core . | . . . Reactor . | . . . Propulsion 3 | . 3 . Treads . | . . . Leg . | . . . Wheel . | . . . Hover . | . . . Flight 3 | . 3 . Utility 2 | 1 1 . Device 2 | 1 1 . Storage . | . . . Processor . | . . . Hackware . | . . . Protection . | . . . Artifact . | . . . Weapon 3 | 2 1 . Energy Gun 1 | 1 . . Energy Cannon . | . . . Ballistic Gun 1 | 1 . . Ballistic Cannon . | . . . Launcher . | . . . Special Weapon . | . . . Impact Weapon . | . . . Slashing Weapon 1 | . 1 . Piercing Weapon . | . . . Special Melee Weapon . | . . . Unidentified Prototypes 1 | . 1 . Parts Lost 7 | . 6 1 Power . | . . . Propulsion 2 | . 1 1 Utility 2 | . 2 . Weapon 3 | . 3 . Highest Loss Streak 5 | . 4 5 To Critical Strikes 1 | . . 1 Average Backups 4 | 3 4 5 Power 1 | 1 2 2 Propulsion . | . . . Utility 1 | 1 2 2 Weapon . | . . 1 Tool/Special . | . . . Unused Backups 4 | 1 . 3 Power 1 | . . 1 Propulsion . | . . . Utility 2 | . . 2 Weapon 1 | 1 . . Tool/Special . | . . . Average Slot Usage (%) 42 | . 43 25 Flight 11 | . 11 25 Device 16 | . 17 . Energy Gun 11 | . 11 . Ballistic Gun 2 | . 2 . Peak Build Rating 17 | 3 17 2 Average Rating 5 | 1 6 1 On Entrance 1 | . 2 2 Avg Prop Armor Cover (%) . | . . . Naked Turns 3 | . 3 . Heaviest Build 6 | 4 6 . Greatest Support 8 | 3 8 8 Greatest Overweight (x) 1 | 1 1 . Average Overweight (x) . | . . . Largest Inventory Capacity 5 | 5 5 5 Average Capacity 5 | 5 5 5 Most Carried 5 | 5 5 5 Average Carried 4 | 3 4 5 Final Capacity 5 | 5 5 5 Final Carried 5 | 5 5 5 Class Distribution -------------------- 100% | Mutant Dominant Class ---------------- Mutant | -10/Materials Mutant | -10/Mines Resources | -11 -10 -10 ----------- Run | Yrd Mat Min Matter Collected 393 | 267 126 . Remotely . | . . . Salvage Created 316 | 106 210 . Parts 28 | 13 15 . Haulers Intercepted 1 | . 1 . Recyclers Shooed 1 | . 1 . Parts Field Recycled . | . . . Retrieved Matter . | . . . Parts Self-Destructed . | . . . Prevented . | . . . Parts Restored . | . . . Kills | -11 -10 -10 ------- Run | Yrd Mat Min Combat Hostiles Destroyed 5 | . 5 . Guns 5 | . 5 . Classes Destroyed 4 | 1 3 . Tunneler 5 | 5 . . Hauler 1 | . 1 . Swarmer 2 | . 2 . Grunt 3 | . 3 . Best Kill Streak 4 | 4 3 . Combat Bots Only 2 | . 2 . Max Kills in Single Turn 1 | 1 1 . Gunslinging . | . . . Exploded . | . . . Melee . | . . . Uniques/NPCs Destroyed . | . . . Combat | -11 -10 -10 -------- Run | Yrd Mat Min Hostile Shots Fired 81 | . 76 5 Missed 21 | . 19 2 Hits 60 | . 57 3 Projectile 60 | . 57 3 Critical Strikes 3 | . 2 1 Damage Taken 549 | . 520 29 Core 254 | . 244 10 Absorbed by Shields . | . . . Core Remaining (%) 100 | 100 . . Volleys Fired 45 | 12 33 . Largest 2 | 2 2 . Hottest 60 | 60 60 . Shots Fired 62 | 21 41 . Gun 62 | 21 41 . Cannon . | . . . Launcher . | . . . Special . | . . . Kinetic 31 | 9 22 . Thermal . | . . . Explosive . | . . . Electromagnetic 31 | 12 19 . Robot Hit Streak 9 | 4 9 . Robot Miss Streak 2 | 2 2 . Penetration Max . | . . . Secondary Targets 1 | . 1 . Max Gunslinging Chain 1 | . 1 . Shots Hit Robots 39 | 12 27 . Core Hits 16 | 5 11 . Critical Kills . | . . . Critical Parts Destroyed . | . . . Critical Strikes 1 | . 1 . Corrupt 1 | . 1 . Melee Attacks 1 | . 1 . Impact . | . . . Slashing 1 | . 1 . Piercing . | . . . Sneak Attacks . | . . . Combat Hostiles . | . . . Follow-up Attacks . | . . . Damage Inflicted 559 | 182 377 . Guns 531 | 154 377 . Cannons . | . . . Explosions 28 | 28 . . Melee . | . . . Ramming . | . . . Kinetic 276 | 75 201 . Thermal 28 | 28 . . Explosive . | . . . Electromagnetic 255 | 79 176 . Impact . | . . . Slashing . | . . . Piercing . | . . . Highest Corruption . | . . . Average Corruption . | . . . Corruption Purged . | . . . Corruption Blocked . | . . . Overload Shots . | . . . Overflow Damage . | . . . Projectiles . | . . . Explosions . | . . . Melee . | . . . Knockbacks . | . . . Impact . | . . . Kinetic . | . . . Secondary . | . . . Self-Inflicted Damage . | . . . Shots . | . . . Rammed . | . . . Targets Rammed . | . . . Kicked . | . . . Crushed . | . . . Highest Temperature 15 | 15 7 . Average Temperature 4 | 10 2 . Received Heat Transfer 126 | . 126 . Siege Activations . | . . . Martial Activations . | . . . Shielding Activations . | . . . Robots Disrupted . | . . . Combat Hostiles . | . . . Robots Corrupted . | . . . Combat Hostiles . | . . . Parts Fried 1 | . 1 . Impact Corruptions . | . . . Robots Melted . | . . . Combat Hostiles . | . . . Parts Melted . | . . . Heat Transferred 50 | 50 . . Parts Sabotaged . | . . . Parts Stolen . | . . . Parts Stripped . | . . . Power Chain Reactions 1 | 1 . . Alert | -11 -10 -10 ------- Run | Yrd Mat Min Maximum Alert Level . | . . . Low Security (%) 100 | 100 100 100 Level 1 . | . . . Level 2 . | . . . Level 3 . | . . . Level 4 . | . . . Level 5 . | . . . High Security . | . . . Max Security . | . . . Peak Influence 75 | 10 75 9 Initial 9 | . . 9 Average 6 | 1 8 4 Influence Increases 157 | 25 132 . Destroy 0b10 Robot/C 100 | . 100 . Destroy 0b10 Robot/NC 30 | 25 5 . Destroy Leader 12 | . 12 . Disable Machine 15 | . 15 . Influence Decreases 157 | 25 107 25 Entered New Map 16 | . . 16 Time Decay 75 | 25 50 . Lost Part 66 | . 57 9 Squads Dispatched . | . . . Investigation . | . . . Extermination . | . . . Reinforcement . | . . . Assault . | . . . Garrison . | . . . Intercept . | . . . Searches Triggered . | . . . Construction Impeded . | . . . Haulers Reinforced . | . . . Active Scanning Responses . | . . . Cargo Convoy Interrupts . | . . . Stealth | -11 -10 -10 --------- Run | Yrd Mat Min Distress Signals 1 | . 1 . Communications Jammed . | . . . Distress Signals . | . . . Times Spotted 15 | . 12 3 Peak Tracking Total 8 | . 8 3 Tactical Retreats . | . . . Traps | -11 -10 -10 ------- Run | Yrd Mat Min Traps Triggered . | . . . Indirectly . | . . . Trap Hack Attempts . | . . . Triggered . | . . . Disarmed . | . . . Reprogrammed . | . . . Reused . | . . . Traps Extracted . | . . . Installed . | . . . Triggered . | . . . Machines | -11 -10 -10 ---------- Run | Yrd Mat Min Machines Disabled 1 | . 1 . Max in Single Turn 1 | . 1 . Machines Repaired . | . . . Machines Dismantled . | . . . Machines Sabotaged . | . . . Overloaded Fab Kills . | . . . Hacking | -11 -10 -10 --------- Run | Yrd Mat Min Machines Accessed . | . . . Terminals . | . . . Fabricators . | . . . Repair Stations . | . . . Recycling Units . | . . . Scanalyzers . | . . . Garrison Access . | . . . Total Hacks . | . . . Successful . | . . . Failed . | . . . Catastrophic . | . . . Database Lockouts . | . . . Manual 2 | . 2 . Terminals . | . . . Fabricators . | . . . Repair Stations . | . . . Recycling Units . | . . . Scanalyzers . | . . . Garrison Access . | . . . Terminal Hacks . | . . . Fabricator Hacks . | . . . Repair Station Hacks . | . . . Recycling Unit Hacks . | . . . Scanalyzer . | . . . Garrison Access Hacks . | . . . Unauthorized Hacks . | . . . Terminals . | . . . Fabricators . | . . . Repair Stations . | . . . Recycling Units . | . . . Scanalyzers . | . . . Garrison Access . | . . . Data Cores Recovered . | . . . Used . | . . . Hacking Detections . | . . . Full Trace Events . | . . . Feedback Events . | . . . Feedback Blocked . | . . . Robot Schematics Acquired . | . . . Robots Built . | . . . Authchips . | . . . Time . | . . . Total Robot Build Rating . | . . . Part Schematics Acquired . | . . . Parts Built . | . . . Authchips . | . . . Time . | . . . Total Part Build Rating . | . . . Part Studies Acquired . | . . . Parts Repaired . | . . . Time . | . . . Parts Recycled . | . . . Recycled Matter . | . . . Retrieved Matter . | . . . Retrieved Components . | . . . Parts Scanalyzed . | . . . Part Schematics Acquired . | . . . Parts Damaged . | . . . Bothacking | -11 -10 -10 ------------ Run | Yrd Mat Min Used RIF Installer . | . . . Robots Hacked . | . . . Non-combat . | . . . Combat . | . . . Robot Hacks Applied . | . . . Relay Couplers Released . | . . . Fabnet Peak Effective % . | . . . Robots Rewired . | . . . Allies Hacked . | . . . Hacks Repelled . | . . . Allies | -11 -10 -10 -------- Run | Yrd Mat Min Total Allies . | . . . Largest Group . | . . . Highest-Rated Group . | . . . Highest-Rated Ally . | . . . Total Orders . | . . . Ally Attacks . | . . . Total Damage . | . . . Kills . | . . . Allies Corrupted . | . . . Allies Melted . | . . . X0-1V1 Amusement Gains 74 | . 74 . Good Acts 1 | . 1 . Bad Acts 1 | . 1 . Intel | -11 -10 -10 ------- Run | Yrd Mat Min Active Infowar (turns) 344 | 14 330 . Seismic 344 | 14 330 . Robot Analysis Total . | . . . Derelict Logs Recovered . | . . . Drone Launches . | . . . Drone Recoveries . | . . . Exploration | -11 -10 -10 ------------- Run | Yrd Mat Min Turns Passed 501 | 151 348 2 Spaces Moved 279 | 133 141 5 Core 177 | 133 44 . Treads . | . . . Legs . | . . . Wheels . | . . . Hover . | . . . Flight 102 | . 97 5 Fastest Speed 37 | 50 37 37 Average Speed 62 | 79 46 39 Slowest Speed 100 | 100 100 40 Overloaded Moves . | . . . Propulsion Burnouts . | . . . Robots Hopped 1 | . 1 . Potential Cave-ins . | . . . Cave-ins Triggered . | . . . Exploration Rate (%) 11 | 4 26 3 Regions Visited 2 Branch Regions 1 Pre-discovered Areas . | . . . Known Exits Taken . | . . . Unknown Exits Taken 2 | 1 1 . Scrap Searched . | . . . Spaces Dug . | . . . Terrain Destroyed 6 | 6 . . Melee . | . . . Projectile . | . . . AOE 6 | 6 . . Terrain Rammed . | . . . Walls Destroyed . | . . . Machines Disabled . | . . . Actions | -11 -10 -10 --------- Run | Yrd Mat Min Total 537 | 155 377 5 Wait 193 | . 193 . Move 275 | 132 138 5 Hop 1 | . 1 . Pick Up 5 | 4 1 . Fast Attach 9 | 4 5 . Attach 3 | . 3 . Detach 4 | 2 2 . Swap . | . . . Drop 1 | 1 . . Fire 45 | 12 33 . Melee 1 | . 1 . Ram . | . . . Kick . | . . . Crush . | . . . Escape Stasis . | . . . Rewire . | . . . Trap . | . . . Miscellaneous . | . . . Route ------- -11/Scrapyard -10/Materials (discovered 3 exits: [*Min x2] / [*Sub]) -10/Mines History --------- Turn | Location | Event 8 | -11/Scrapyard | Discovered new exit (range 16) 152 | -11/Scrapyard | Entered Materials 254 | -10/Materials | Discovered new exit (range 8) 302 | -10/Materials | Build established: Mutant 369 | -10/Materials | Prayed at D.C.S.S. Altar Unit 408 | -10/Materials | Discovered new exit (range 6) 432 | -10/Materials | X0-1V1 sent hostile G-34 Mercenary (x3) 441 | -10/Materials | Weapon slot count temporarily expanded by X0-1V1 (+1) 485 | -10/Materials | Core integrity fell below 50% 493 | -10/Materials | Core integrity fell below 20% 498 | -10/Materials | Discovered new exit (range 6) 500 | -10/Materials | Entered Mines 502 | -10/Mines | Destroyed by S-10 Pest with Light Assault Rifle Last Messages --------------- 00488_ K-01 Serf collects debris. 00488_ X0-1V1's Piety Tracker destroyed. 00488_ X0-1V1 is mildly amused. 00488_ Acquired Lgt. Assault Rifle. 00489_ X0-1V1 is amused. 00489_ K-01 Serf collects debris. 00491_ Acquired Flight Unit. 00491_ K-01 Serf collects debris. 00493_ Acquired Flight Unit. 00494_ K-01 Serf collects debris. 00494_ Acquired 20 matter. 00494_ Acquired 11 matter. 00496_ K-01 Serf collects debris. 00498_ EXIT=FOUND 00499_ O-16 Technician: "IFF HANDSHAKE FAILED. SECURING TERMINAL." LOCATION=UNKNOWN GOAL=ESCAPE 00501_ Critical hit (Destroy). 00501_ Flight Unit destroyed. 00502_ X0-1V1 chortles! Map ----- +----------------------------------------------------+ | ?????????????????????????????????????????????????? | | ?????????????????????????????????????????????????? | | ?????????????????????????????????????????????????? | | ?????????????????????????????????????????????????? | | ?????????????????????????????????????????????????? | | ?????????????????????????????????????????????????? | | ?????????????????????????????????????????????????? | | ?????????????????????????????????????????????????? | | ?????????????????????????????????????????????????? | | ?????????????????????????????????????????????????? | | ?????????????????????????????????????????????????? | | ?????????????????????????????????????????????????? | | ?????????????????????????????????????????????????? | | ?????????????????????????????????????????????????? | | ?????????????????????????????????????????????????? | | ?????????????????????????????????????????????????? | | ?????????????????????????????????????????????????? | | ?????????????????????????????????????????????????? | | ?????????????????????????????????????????????????? | | ?????????????????????????????????????????????????? | | ?????????????????????????????????????????????????? | | ???????????????????????#####?????????????????????? | | ???????????????????????# ??????????????????????? | | ???????????????????????# ??????????????????????? | | ???????????????????????# #??????????????????????? | | ???????????????????????# @#??????????????????????? | | ??????????????????????## ####???????????????????? | | ??????????????????????# s #???????????????????? | | ????????????????# $#### #???????????????????? | | ????????????????# #???????????????????? | | ????????????????#######s #???????????????????? | | ??????????????????????# s #???????????????????? | | ??????????????????????########???????????????????? | | ?????????????????????????????????????????????????? | | ?????????????????????????????????????????????????? | | ?????????????????????????????????????????????????? | | ?????????????????????????????????????????????????? | | ?????????????????????????????????????????????????? | | ?????????????????????????????????????????????????? | | | | | | | | | | | | | | | | | | | | | | | +----------------------------------------------------+ Best States ------------- Heat Dissipation 25 Energy Generation 5 Energy Capacity 100 Matter Stores 300 Matter Capacity 300 Sight Range 16 Terrain Scan Density 10 Evasion (%) 62 Item Schematics ----------------- None Robot Schematics ------------------ None Fabricated ------------ Nothing Repaired ---------- Nothing Studied --------- None Alien Tech Used ----------------- None Achievements -------------- None Challenges ------------ None Game ------ Seed GravitonImpactShell Manual? 0 Play Time 00:03:08 Cumulative 26.0 hours Start 2026.07.12 @ 21:17:44 End 2026.07.12 @ 21:20:51 Sessions 1 Manual Loads 0 Difficulty Rogue Special Mode None Game No. 22 Rogue 22 Adventurer 0 Explorer 0 Win Type - Total 1 Types 1/0/0/0/0/0/0/0/0/0 Lore% 23 Gallery% 35 Achievement% 58 Wizard Run 0 Options --------- Layout 0 ASCII 0 Keyboard 0 Movement Vi Keybinds 0 Fullscreen 2 Font 18/TerminusBold Map View 76x50 Zoom Use 0% Tactical HUD 1 Map Filters NONE Filters NONE Steam 1 RUN: 15d04507-f2f9-47ad-a847-6a93596e5f82